fUST/lending_fUST_20240927
["ID","MTS","AMOUNT","RATE_DAILY","PERIOD"]
[339258420,1727410246510,-500.0,0.00020573,2]
[339258421,1727410246519,-500.0,0.00020573,2]
[339258422,1727410246529,-251.237435,0.00020623,2]
[339258423,1727410246539,-151.0,0.0002064,2]
[339258424,1727410246548,-151.0,0.0002064,2]
[339258425,1727410246558,-150.112233,0.000207,3]
[339258426,1727410246568,-150.112233,0.000207,2]
[339258427,1727410246578,-151.0,0.00020741,2]
[339258428,1727410246587,-6539.12210435,0.00020766,2]
[339258429,1727410246597,-420.0,0.00020778,2]
[339258430,1727410246606,-151.0,0.00020811,2]
[339258431,1727410246616,-24682.4933482,0.00020811,3]
[339258432,1727410246626,-500.0,0.00020821,2]
[339258433,1727410246636,-594.32,0.00020821,2]
[339258434,1727410246646,-1084.96,0.00020821,2]
[339258435,1727410246656,-1255.74,0.00020821,2]
[339258436,1727410246666,-560.47,0.00020821,2]
[339258437,1727410246675,-1060.62,0.00020821,2]
[339258438,1727410246685,-500.0,0.00020821,2]
[339258439,1727410246695,-1925.98,0.00020821,2]
[339258440,1727410246708,-200.0,0.00020821,2]
[339258441,1727410246718,-500.0,0.00020821,2]
[339258443,1727410246729,-1518.25,0.00020821,2]
[339258444,1727410246739,-500.0,0.00020821,2]
[339258445,1727410246750,-2151.0,0.00020821,2]
[339258446,1727410246760,-544.16,0.00020821,2]
[339258447,1727410246770,-151.0,0.00020821,2]
[339258448,1727410246784,-151.0,0.00020821,2]
[339258449,1727410246793,-151.0,0.00020821,2]
[339258450,1727410246802,-151.0,0.00020821,2]
[339258451,1727410246811,-754.43,0.00020821,2]
[339258452,1727410246820,-151.0,0.00020821,2]
[339258453,1727410246830,-216.949274,0.00020821,2]
[339258454,1727410246840,-19089.96,0.00020821,2]
[339258455,1727410246850,-3668.5,0.00020821,2]
[339258456,1727410246861,-151.0,0.00020821,2]
[339258457,1727410246871,-475.68836085,0.0002086,2]
[339258458,1727410246881,-156.52535081,0.00020866,3]
[339258465,1727411243148,-300.0,0.00018072,2]
[339258466,1727411243169,-300.0,0.00018072,2]
[339258467,1727411243191,-139.22497919,0.00018073,2]
[339258468,1727411248191,-5525.67483127,0.00018073,2]
[339258483,1727411322501,807.72881751,0.00012,2]
[339258489,1727411392145,186.947162,0.00017833,2]
[339258533,1727411432274,-186.947162,0.00018065,2]
[339258535,1727411432284,-300.0,0.00018072,2]
[339258537,1727411432294,-300.0,0.00018072,2]
[339258539,1727411432303,-1808.85242613,0.00018073,2]
[339258636,1727411438735,-82.1361088,0.00018073,2]
[339258647,1727411440319,-17344.11165461,0.00018073,2]
[339258648,1727411440329,-401.94094105,0.00018154,2]
[339258649,1727411440338,-323.3297335,0.00018188,2]
[339258650,1727411440347,-186.947162,0.00018298,2]
[339258651,1727411440356,-186.947162,0.0001853,2]
[339258652,1727411440366,-186.947162,0.00018762,2]
[339258653,1727411440375,-167.242773,0.00018904,2]
[339258654,1727411440385,-507.59049363,0.00018973,2]
[339258655,1727411440394,-213.64123985,0.00018978,2]
[339258656,1727411440404,-313.44,0.0001899,3]
[339258657,1727411440414,-426.80624752,0.00018999,2]
[339258658,1727411440423,-500.0,0.00018999,2]
[339258659,1727411440433,-494.37274768,0.00018999,2]
[339258660,1727411440442,-500.0,0.00018999,2]
[339258661,1727411440451,-533.23873127,0.00018999,2]
[339258662,1727411440460,-500.0,0.00018999,2]
[339258663,1727411440470,-637.16474495,0.00018999,2]
[339258664,1727411440480,-125224.97292974,0.00019,2]
[339258665,1727411440489,-235.3723892,0.00019078,2]
[339258666,1727411440498,-1335.05282564,0.00019078,2]
[339258667,1727411440508,-40775.8666101,0.00019168,3]
[339258668,1727411440517,-29163.3517996,0.00019168,3]
[339258669,1727411440527,-501.66996351,0.00019173,2]
[339258670,1727411440536,-500.0,0.00019173,2]
[339258671,1727411440546,-500.0,0.00019173,2]
[339258672,1727411440556,-500.0,0.00019173,2]
[339258673,1727411440566,-500.0,0.00019178,2]
[339258674,1727411440575,-1000.0,0.00019178,2]
[339258675,1727411440587,-154.1035987,0.00019178,2]
[339258676,1727411440598,-500.0,0.00019178,2]
[339258677,1727411440608,-507.73715243,0.00019178,2]
[339258678,1727411440619,-512.88799537,0.00019178,2]
[339258679,1727411440629,-500.0,0.00019178,2]
[339258680,1727411440640,-500.0,0.00019178,2]
[339258681,1727411440649,-515.56728908,0.00019178,2]
[339258682,1727411440658,-500.0,0.00019178,2]
[339258683,1727411440668,-500.0,0.00019178,2]
[339258684,1727411440678,-510.71150296,0.00019178,2]
[339258685,1727411440686,-500.0,0.00019178,2]
[339258686,1727411440696,-500.0,0.00019178,2]
[339258687,1727411440705,-1807.71,0.00019178,2]
[339258688,1727411440715,-200.0,0.00019178,2]
[339258689,1727411440727,-509.19445995,0.00019178,2]
[339258690,1727411440737,-502.42366268,0.00019178,2]
[339258691,1727411440748,-500.0,0.00019178,2]
[339258692,1727411440757,-500.0,0.00019178,2]
[339258693,1727411440766,-500.0,0.00019178,2]
[339258694,1727411440775,-500.0,0.00019178,2]
[339258695,1727411440785,-167.40369893,0.00019178,2]
[339258696,1727411440794,-503.9632168,0.00019178,2]
[339258697,1727411440804,-500.0,0.00019178,2]
[339258698,1727411440813,-605.04087207,0.00019178,2]
[339258699,1727411440822,-500.0,0.00019178,2]
[339258700,1727411440832,-519.56465659,0.00019178,2]
[339258701,1727411440841,-503.51736652,0.00019178,2]
[339258702,1727411440850,-500.0,0.00019178,2]
[339258703,1727411440860,-500.0,0.00019178,2]
[339258704,1727411440869,-500.0,0.00019178,2]
[339258705,1727411440878,-258.48525124,0.00019178,2]
[339258706,1727411440887,-500.0,0.00019178,2]
[339258707,1727411440897,-505.32202519,0.00019178,2]
[339258708,1727411440907,-500.0,0.00019178,2]
[339258709,1727411440916,-500.0,0.00019178,2]
[339258710,1727411440928,-500.0,0.00019178,2]
[339258711,1727411440937,-500.0,0.00019178,2]
[339258712,1727411440949,-500.0,0.00019178,2]
[339258713,1727411440958,-500.0,0.00019178,2]
[339258714,1727411440967,-500.0,0.00019178,2]
[339258715,1727411440977,-1631.46,0.00019178,2]
[339258716,1727411440986,-251.7110779,0.00019178,2]
[339258717,1727411440995,-511.90092699,0.00019178,2]
[339258718,1727411441005,-507.47233672,0.00019178,2]
[339258719,1727411441016,-500.0,0.00019178,2]
[339258720,1727411441026,-500.0,0.00019178,2]
[339258721,1727411441036,-602.6383402,0.00019178,2]
[339258722,1727411441046,-512.94965533,0.00019178,2]
[339258723,1727411441056,-500.0,0.00019178,2]
[339258724,1727411441065,-510.59731312,0.00019178,2]
[339258725,1727411441074,-504.40958455,0.00019178,2]
[339258726,1727411441083,-500.0,0.00019178,2]
[339258727,1727411441093,-525.94076572,0.00019178,2]
[339258728,1727411441103,-507.71828498,0.00019178,2]
[339258729,1727411441112,-510.27972244,0.00019178,2]
[339258730,1727411441121,-500.0,0.00019178,2]
[339258731,1727411441130,-521.765494,0.00019178,2]
[339258732,1727411441139,-514.68218228,0.00019178,2]
[339258733,1727411441148,-167.00798382,0.00019178,2]
[339258734,1727411441157,-529.213578,0.00019178,2]
[339258735,1727411441165,-500.0,0.00019178,2]
[339258736,1727411441173,-500.0,0.00019178,2]
[339258737,1727411441182,-500.0,0.00019178,2]
[339258738,1727411441192,-500.0,0.00019178,2]
[339258739,1727411441201,-198.40069538,0.00019178,2]
[339258740,1727411441211,-511.40507203,0.00019178,2]
[339258741,1727411441221,-503.39981811,0.00019178,2]
[339258742,1727411441232,-638.63,0.00019178,2]
[339258743,1727411441242,-511.24234283,0.00019178,2]
[339258744,1727411441251,-513.11714691,0.00019178,2]
[339258745,1727411441260,-515.90821142,0.00019178,2]
[339258746,1727411441270,-508.98862349,0.00019178,2]
[339258747,1727411441279,-500.0,0.00019178,2]
[339258748,1727411441289,-500.0,0.00019178,2]
[339258749,1727411441298,-1165.86,0.00019178,2]
[339258750,1727411441308,-1349.37,0.00019178,2]
[339258751,1727411441317,-500.0,0.00019178,2]
[339258752,1727411441327,-602.26,0.00019178,2]
[339258753,1727411441337,-500.0,0.00019178,2]
[339258754,1727411441346,-500.0,0.00019178,2]
[339258755,1727411441358,-500.0,0.00019178,2]
[339258756,1727411441367,-200.19788452,0.00019178,2]
[339258757,1727411441377,-1139.71,0.00019178,2]
[339258758,1727411441387,-435.2877693,0.00019178,2]
[339258759,1727411441397,-164.92206722,0.00019178,2]
[339258760,1727411441407,-506.90798431,0.00019178,2]
[339258761,1727411441416,-500.0,0.00019178,2]
[339258762,1727411441425,-502.20995455,0.00019178,2]
[339258763,1727411441435,-500.0,0.00019178,2]
[339258764,1727411441444,-477.67757379,0.00019178,2]
[339258765,1727411441454,-500.0,0.00019178,2]
[339258766,1727411441464,-298.68161521,0.00019178,2]
[339258767,1727411441474,-2074.18,0.00019178,2]
[339258768,1727411441483,-500.0,0.00019178,2]
[339258769,1727411441493,-226.55240345,0.00019178,2]
[339258770,1727411441502,-500.0,0.00019178,2]
[339258771,1727411441511,-516.95284124,0.00019178,2]
[339258772,1727411441520,-500.0,0.00019178,2]
[339258773,1727411441533,-210.74709163,0.00019178,2]
[339258774,1727411441542,-524.72,0.00019178,2]
[339258775,1727411441551,-500.0,0.00019178,2]
[339258776,1727411441560,-514.45971434,0.00019178,2]
[339258777,1727411441571,-500.0,0.00019178,2]
[339258778,1727411441580,-5000.0,0.00019178,2]
[339258779,1727411441588,-500.0,0.00019178,2]
[339258780,1727411441597,-500.0,0.00019178,2]
[339258781,1727411441608,-500.0,0.00019178,2]
[339258782,1727411441618,-519.752787,0.00019178,2]
[339258783,1727411441628,-408.20000064,0.00019178,2]
[339258784,1727411441638,-513.74410623,0.00019178,2]
[339258785,1727411441647,-518.61842833,0.00019178,2]
[339258786,1727411441656,-522.57476596,0.00019178,2]
[339258787,1727411441665,-314.29715461,0.00019178,2]
[339258788,1727411441675,-263.37469876,0.00019178,2]
[339258789,1727411441684,-691.56,0.00019178,2]
[339258790,1727411441694,-500.0,0.00019178,2]
[339258791,1727411441703,-500.0,0.00019178,2]
[339258792,1727411441712,-18039.76,0.00019178,2]
[339258793,1727411441722,-500.0,0.00019178,2]
[339258794,1727411441731,-508.29261537,0.00019178,2]
[339258795,1727411441740,-500.0,0.00019178,2]
[339258796,1727411441749,-431.20908602,0.00019178,2]
[339258797,1727411441759,-500.0,0.00019178,2]
[339258798,1727411441768,-3384.63,0.00019178,2]
[339258799,1727411441777,-500.0,0.00019178,2]
[339258800,1727411441786,-507.25366586,0.00019178,2]
[339258801,1727411441796,-500.0,0.00019178,2]
[339258802,1727411441805,-500.0,0.00019178,2]
[339258803,1727411441815,-505.57790031,0.00019178,2]
[339258804,1727411441825,-526.07261198,0.00019178,2]
[339258805,1727411441835,-500.0,0.00019178,2]
[339258806,1727411441845,-500.0,0.00019178,2]
[339258807,1727411441857,-158.160284,0.00019178,2]
[339258808,1727411441867,-40775.8666101,0.00019442,3]
[339258809,1727411441876,-29163.3517996,0.00019442,3]
[339258810,1727411441885,-1000.0,0.00019452,2]
[339258811,1727411441895,-510.47063791,0.00019452,2]
[339258812,1727411441904,-514.66813122,0.00019452,2]
[339258813,1727411441914,-500.0,0.00019452,2]
[339258814,1727411441925,-500.0,0.00019452,2]
[339258815,1727411441935,-500.0,0.00019452,2]
[339258816,1727411441946,-500.0,0.00019452,2]
[339258817,1727411441956,-1807.71,0.00019452,2]
[339258818,1727411441965,-200.0,0.00019452,2]
[339258819,1727411441975,-500.0,0.00019452,2]
[339258820,1727411441984,-500.0,0.00019452,2]
[339258821,1727411441994,-500.0,0.00019452,2]
[339258822,1727411442003,-500.0,0.00019452,2]
[339258823,1727411442013,-500.0,0.00019452,2]
[339258824,1727411442023,-500.0,0.00019452,2]
[339258825,1727411442033,-150.16428715,0.00019452,2]
[339258826,1727411442043,-504.86259437,0.00019452,2]
[339258827,1727411442052,-500.0,0.00019452,2]
[339258828,1727411442062,-500.0,0.00019452,2]
[339258829,1727411442071,-500.0,0.00019452,2]
[339258830,1727411442081,-504.0,0.00019452,2]
[339258831,1727411442090,-500.0,0.00019452,2]
[339258832,1727411442100,-1631.46,0.00019452,2]
[339258833,1727411442109,-514.01516408,0.00019452,2]
[339258834,1727411442119,-476.74367815,0.00019452,2]
[339258835,1727411442128,-500.0,0.00019452,2]
[339258836,1727411442139,-500.0,0.00019452,2]
[339258837,1727411442148,-325.57776313,0.00019452,2]
[339258838,1727411442158,-511.67284037,0.00019452,2]
[339258839,1727411442167,-638.63,0.00019452,2]
[339258840,1727411442176,-523.32495011,0.00019452,2]
[339258841,1727411442186,-500.0,0.00019452,2]
[339258842,1727411442195,-1165.86,0.00019452,2]
[339258843,1727411442204,-1349.37,0.00019452,2]
[339258844,1727411442214,-500.0,0.00019452,2]
[339258845,1727411442226,-602.26,0.00019452,2]
[339258846,1727411442236,-509.58871563,0.00019452,2]
[339258847,1727411442247,-414.00244945,0.00019452,2]
[339258848,1727411442257,-1139.71,0.00019452,2]
[339258849,1727411442267,-572.12605362,0.00019452,2]
[339258850,1727411442277,-500.0,0.00019452,2]
[339258851,1727411442286,-500.0,0.00019452,2]
[339258852,1727411442295,-2074.18,0.00019452,2]
[339258853,1727411442305,-500.0,0.00019452,2]
[339258854,1727411442314,-500.0,0.00019452,2]
[339258855,1727411442324,-501.94748668,0.00019452,2]
[339258856,1727411442334,-524.72,0.00019452,2]
[339258857,1727411442344,-510.17944481,0.00019452,2]
[339258858,1727411442354,-5000.0,0.00019452,2]
[339258859,1727411442363,-502.64573123,0.00019452,2]
[339258860,1727411442373,-504.58421127,0.00019452,2]
[339258861,1727411442383,-691.56,0.00019452,2]
[339258862,1727411442393,-500.0,0.00019452,2]
[339258863,1727411442404,-5909.4488402,0.00019452,2]
[339258878,1727411443449,-500.0,0.00019178,2]
[339258879,1727411443458,-500.0,0.00019178,2]
[339258880,1727411443467,-1174.92030909,0.00019452,2]
[339258883,1727411443681,-364.25223664,0.00019452,2]
[339258884,1727411443732,-538.5976853,0.00019452,2]
[339258901,1727411452056,52.99450822,0.00017972,2]
[339258947,1727411834340,5000.0,0.00014111,2]
[339258948,1727411846309,5000.0,0.00014111,2]
[339258949,1727411858256,5000.0,0.00014111,2]
[339258950,1727411866256,5000.0,0.00014111,2]
[339258951,1727411875019,5000.0,0.00014111,2]
[339258952,1727411879656,7994.3883977,0.0001,2]
[339258953,1727411883646,2451.01640094,0.00014111,2]
[339258954,1727411891634,5000.0,0.00014111,2]
[339258955,1727411908341,1245.51686103,0.00014111,2]
[339258959,1727412192247,1543.82922215,0.00021,30]
[339258965,1727412350148,-679.90132785,0.0001764,2]
[339258966,1727412350170,-244.83844,0.00017743,2]
[339258967,1727412350193,-446.60046172,0.00017972,2]
[339258968,1727412350214,-166.666666,0.00018097,2]
[339258969,1727412350236,-163.42955831,0.00018249,2]
[339258970,1727412435103,-2247.64478832,0.00018249,2]
[339258972,1727412548224,-475.74506639,0.00018522,2]
[339258973,1727412548247,-3380.75350136,0.0001872,2]
[339258982,1727412632442,-150.0,0.00018641,2]
[339258983,1727412632456,-1435.86655788,0.00018956,2]
[339258984,1727412632470,-3227.00818963,0.00018956,2]
[339258985,1727412632483,-2175.13508955,0.00018956,2]
[339258986,1727412632507,-39.70080022,0.00018956,2]
[339258987,1727412632519,-155.18024949,0.0001909,2]
[339258988,1727412632531,-300.0,0.00019167,2]
[339258989,1727412632542,-8.34020019,0.00019167,2]
[339258990,1727412632555,-291.65979981,0.00019167,2]
[339258991,1727412632566,-409.25879365,0.00019167,2]
[339258993,1727412632577,-57.60090429,0.00019168,3]
[339258994,1727412632590,-536.04086264,0.00019168,3]
[339259029,1727412638760,-649.35810863,0.00019168,3]
[339259030,1727412638774,-39637.95652624,0.00019168,3]
[339259031,1727412638786,-27710.7068719,0.00019168,3]
[339259032,1727412638797,-501.40722917,0.00019173,2]
[339259033,1727412638807,-500.0,0.00019173,2]
[339259034,1727412638818,-500.0,0.00019173,2]
[339259035,1727412638830,-500.0,0.00019173,2]
[339259036,1727412638842,-500.0,0.00019173,2]
[339259037,1727412638855,-503.88758842,0.00019177,2]
[339259038,1727412638866,-392.39827275,0.00019177,2]
[339259039,1727412638878,-398.57341819,0.00019177,2]
[339259040,1727412638889,-191.59116483,0.00019177,2]
[339259041,1727412638901,-500.0,0.00019177,2]
[339259042,1727412638912,-391.11906503,0.00019177,2]
[339259043,1727412638923,-500.0,0.00019177,2]
[339259044,1727412638934,-500.0,0.00019177,2]
[339259045,1727412638945,-500.0,0.00019177,2]
[339259046,1727412638955,-500.0,0.00019178,2]
[339259047,1727412638966,-500.0,0.00019178,2]
[339259048,1727412638977,-500.0,0.00019178,2]
[339259049,1727412638988,-514.01516408,0.00019178,2]
[339259050,1727412638999,-512.94965533,0.00019178,2]
[339259051,1727412639010,-511.90092699,0.00019178,2]
[339259052,1727412639022,-510.59731312,0.00019178,2]
[339259053,1727412639034,-507.47233672,0.00019178,2]
[339259054,1727412639045,-504.40958455,0.00019178,2]
[339259055,1727412639055,-521.765494,0.00019178,2]
[339259056,1727412639065,-500.0,0.00019178,2]
[339259057,1727412639076,-514.68218228,0.00019178,2]
[339259058,1727412639085,-507.71828498,0.00019178,2]
[339259059,1727412639095,-510.27972244,0.00019178,2]
[339259060,1727412639115,-525.94076572,0.00019178,2]
[339259061,1727412639125,-500.0,0.00019178,2]
[339259062,1727412639135,-500.0,0.00019178,2]
[339259063,1727412639145,-500.0,0.00019178,2]
[339259064,1727412639155,-167.00798382,0.00019178,2]
[339259065,1727412639364,-500.0,0.00019178,2]
[339259066,1727412639381,-515.90821142,0.00019178,2]
[339259067,1727412639399,-500.0,0.00019178,2]
[339259068,1727412639409,-508.98862349,0.00019178,2]
[339259069,1727412639418,-500.0,0.00019178,2]
[339259070,1727412639428,-500.0,0.00019178,2]
[339259071,1727412639438,-500.0,0.00019178,2]
[339259072,1727412639451,-1165.86,0.00019178,2]
[339259073,1727412639460,-503.39981811,0.00019178,2]
[339259074,1727412639469,-638.63,0.00019178,2]
[339259075,1727412639479,-500.0,0.00019178,2]
[339259076,1727412639489,-1349.37,0.00019178,2]
[339259077,1727412639498,-602.26,0.00019178,2]
[339259078,1727412639507,-1631.46,0.00019178,2]
[339259079,1727412639517,-500.0,0.00019178,2]
[339259080,1727412639529,-500.0,0.00019178,2]
[339259081,1727412639540,-1139.71,0.00019178,2]
[339259082,1727412639552,-500.0,0.00019178,2]
[339259083,1727412639561,-500.0,0.00019178,2]
[339259084,1727412639570,-435.2877693,0.00019178,2]
[339259085,1727412639580,-164.92206722,0.00019178,2]
[339259086,1727412639589,-506.90798431,0.00019178,2]
[339259087,1727412639599,-502.20995455,0.00019178,2]
[339259088,1727412639608,-477.67757379,0.00019178,2]
[339259089,1727412639618,-226.55240345,0.00019178,2]
[339259090,1727412639627,-500.0,0.00019178,2]
[339259091,1727412639641,-514.45971434,0.00019178,2]
[339259092,1727412639650,-500.0,0.00019178,2]
[339259093,1727412639659,-500.0,0.00019178,2]
[339259094,1727412639672,-500.0,0.00019178,2]
[339259095,1727412639682,-500.0,0.00019178,2]
[339259096,1727412639691,-500.0,0.00019178,2]
[339259097,1727412639700,-500.0,0.00019178,2]
[339259098,1727412639709,-519.752787,0.00019178,2]
[339259099,1727412639718,-513.74410623,0.00019178,2]
[339259100,1727412639727,-314.29715461,0.00019178,2]
[339259101,1727412639737,-500.0,0.00019178,2]
[339259102,1727412639747,-1000.0,0.00019178,2]
[339259103,1727412639756,-508.29261537,0.00019178,2]
[339259104,1727412639766,-500.0,0.00019178,2]
[339259105,1727412639775,-507.25366586,0.00019178,2]
[339259106,1727412639784,-529.213578,0.00019178,2]
[339259107,1727412639793,-505.57790031,0.00019178,2]
[339259108,1727412639802,-500.0,0.00019178,2]
[339259109,1727412639811,-431.20908602,0.00019178,2]
[339259110,1727412639820,-500.0,0.00019178,2]
[339259111,1727412639829,-507.73715243,0.00019178,2]
[339259112,1727412639839,-500.0,0.00019178,2]
[339259113,1727412639848,-515.56728908,0.00019178,2]
[339259114,1727412639858,-500.0,0.00019178,2]
[339259115,1727412639867,-500.0,0.00019178,2]
[339259116,1727412639877,-500.0,0.00019178,2]
[339259117,1727412639887,-500.0,0.00019178,2]
[339259118,1727412639897,-500.0,0.00019178,2]
[339259119,1727412639906,-154.1035987,0.00019178,2]
[339259120,1727412639914,-510.71150296,0.00019178,2]
[339259121,1727412639924,-1968.21,0.00019178,2]
[339259123,1727412639933,-512.88799537,0.00019178,2]
[339259124,1727412639941,-198.40069538,0.00019178,2]
[339259125,1727412639950,-502.42366268,0.00019178,2]
[339259126,1727412639959,-511.40507203,0.00019178,2]
[339259127,1727412639968,-511.24234283,0.00019178,2]
[339259128,1727412639978,-500.0,0.00019178,2]
[339259129,1727412639987,-513.11714691,0.00019178,2]
[339259130,1727412639996,-167.40369893,0.00019178,2]
[339259131,1727412640005,-503.9632168,0.00019178,2]
[339259132,1727412640014,-500.0,0.00019178,2]
[339259133,1727412640025,-200.0,0.00019178,2]
[339259134,1727412640034,-500.0,0.00019178,2]
[339259136,1727412640044,-500.0,0.00019178,2]
[339259137,1727412640053,-519.56465659,0.00019178,2]
[339259138,1727412640062,-503.51736652,0.00019178,2]
[339259139,1727412640071,-509.19445995,0.00019178,2]
[339259140,1727412640081,-500.0,0.00019178,2]
[339259141,1727412640090,-529.61,0.00019178,2]
[339259142,1727412640099,-500.0,0.00019178,2]
[339259143,1727412640109,-342.5325947,0.00019178,2]
[339259144,1727412640120,-500.0,0.00019178,2]
[339259145,1727412640132,-313.98973406,0.00019178,2]
[339259146,1727412640142,-500.0,0.00019178,2]
[339259147,1727412640152,-554.68958909,0.00019178,2]
[339259148,1727412640161,-504.21684201,0.00019178,2]
[339259149,1727412640170,-200.19788452,0.00019178,2]
[339259150,1727412640180,-2074.18,0.00019178,2]
[339259151,1727412640190,-500.0,0.00019178,2]
[339259152,1727412640200,-505.32202519,0.00019178,2]
[339259154,1727412640209,-500.0,0.00019178,2]
[339259155,1727412640219,-210.74709163,0.00019178,2]
[339259156,1727412640228,-500.0,0.00019178,2]
[339259157,1727412640237,-500.0,0.00019178,2]
[339259158,1727412640247,-500.0,0.00019178,2]
[339259159,1727412640256,-298.68161521,0.00019178,2]
[339259161,1727412640265,-500.0,0.00019178,2]
[339259163,1727412640275,-500.0,0.00019178,2]
[339259165,1727412640284,-500.0,0.00019178,2]
[339259166,1727412640294,-524.72,0.00019178,2]
[339259167,1727412640303,-500.0,0.00019178,2]
[339259168,1727412640312,-500.0,0.00019178,2]
[339259169,1727412640321,-516.95284124,0.00019178,2]
[339259170,1727412640330,-408.20000064,0.00019178,2]
[339259171,1727412640340,-518.61842833,0.00019178,2]
[339259172,1727412640349,-5000.0,0.00019178,2]
[339259173,1727412640358,-263.37469876,0.00019178,2]
[339259174,1727412640367,-500.0,0.00019178,2]
[339259175,1727412640376,-691.56,0.00019178,2]
[339259176,1727412640386,-522.57476596,0.00019178,2]
[339259177,1727412640396,-500.0,0.00019178,2]
[339259178,1727412640407,-500.0,0.00019178,2]
[339259179,1727412640417,-17953.18,0.00019178,2]
[339259180,1727412640426,-500.0,0.00019178,2]
[339259181,1727412640437,-500.0,0.00019178,2]
[339259182,1727412640449,-526.07261198,0.00019178,2]
[339259183,1727412640459,-3384.63,0.00019178,2]
[339259184,1727412640468,-500.0,0.00019178,2]
[339259185,1727412640477,-500.0,0.00019178,2]
[339259186,1727412640487,-500.0,0.00019178,2]
[339259187,1727412640496,-190.088101,0.00019178,2]
[339259188,1727412640505,-5572.36547145,0.00019335,2]
[339259189,1727412640564,-1305.34516583,0.00019335,2]
[339259190,1727412640574,-40880.9564018,0.00019442,3]
[339259191,1727412640584,-27710.7068719,0.00019442,3]
[339259192,1727412640596,-465.53725332,0.00019448,2]
[339259193,1727412640606,-500.0,0.00019452,2]
[339259194,1727412640616,-500.0,0.00019452,2]
[339259195,1727412640625,-150.16428715,0.00019452,2]
[339259196,1727412640636,-500.0,0.00019452,2]
[339259197,1727412640648,-500.0,0.00019452,2]
[339259198,1727412640658,-511.67284037,0.00019452,2]
[339259199,1727412640667,-504.0,0.00019452,2]
[339259200,1727412640676,-523.32495011,0.00019452,2]
[339259201,1727412640686,-500.0,0.00019452,2]
[339259202,1727412640695,-500.0,0.00019452,2]
[339259203,1727412640705,-1165.86,0.00019452,2]
[339259204,1727412640715,-638.63,0.00019452,2]
[339259205,1727412640726,-500.0,0.00019452,2]
[339259206,1727412640736,-1349.37,0.00019452,2]
[339259207,1727412640745,-602.26,0.00019452,2]
[339259208,1727412640755,-1631.46,0.00019452,2]
[339259209,1727412640765,-509.58871563,0.00019452,2]
[339259210,1727412640775,-414.00244945,0.00019452,2]
[339259211,1727412640784,-1139.71,0.00019452,2]
[339259212,1727412640797,-572.12605362,0.00019452,2]
[339259213,1727412640807,-500.0,0.00019452,2]
[339259214,1727412640818,-501.94748668,0.00019452,2]
[339259215,1727412640828,-510.17944481,0.00019452,2]
[339259216,1727412640840,-502.64573123,0.00019452,2]
[339259217,1727412640849,-504.58421127,0.00019452,2]
[339259218,1727412640859,-476.74367815,0.00019452,2]
[339259219,1727412640868,-500.0,0.00019452,2]
[339259220,1727412640878,-500.0,0.00019452,2]
[339259221,1727412640895,-1000.0,0.00019452,2]
[339259222,1727412640904,-500.0,0.00019452,2]
[339259223,1727412640916,-510.47063791,0.00019452,2]
[339259224,1727412640925,-514.66813122,0.00019452,2]
[339259225,1727412640935,-500.0,0.00019452,2]
[339259226,1727412640946,-500.0,0.00019452,2]
[339259227,1727412640956,-500.0,0.00019452,2]
[339259228,1727412640966,-325.57776313,0.00019452,2]
[339259229,1727412640975,-500.0,0.00019452,2]
[339259230,1727412640984,-1968.21,0.00019452,2]
[339259231,1727412640994,-500.0,0.00019452,2]
[339259232,1727412641003,-200.0,0.00019452,2]